bitfinex/quotes_SOLUSD_20260305
["timestamp","ask_amount","ask_price","bid_price","bid_amount"]
[1772699079020,3.69383402,90.036,89.991,0.72092609]
[1772699080327,38.8737713,90.035,89.993,0.72092609]
[1772699081923,11.1067918,90.035,89.993,0.72092609]
[1772699082928,4.25747958,90.03,89.995,0.72092609]
[1772699083225,38.8737713,90.035,89.995,0.72092609]
[1772699083609,11.1067918,90.035,89.995,0.72092609]
[1772699083927,38.8737713,90.035,89.995,0.72092609]
[1772699084318,15.92404757,90.096,89.995,0.72092609]
[1772699084624,15.92404757,90.096,89.994,38.89148165]
[1772699084625,4.25747958,90.05,89.996,0.72092609]
[1772699085425,38.86772757,90.049,89.998,0.72092609]
[1772699087230,3.69383402,90.046,89.998,0.72092609]
[1772699087438,11.10555833,90.045,90.0,0.72092609]
[1772699087842,38.86945415,90.045,90.0,0.72092609]
[1772699091639,4.25747958,90.04,90.002,0.72092609]
[1772699091833,4.25747958,90.03,89.988,0.72092609]
[1772699092741,4.26499802,90.03,89.988,0.72092609]
[1772699092939,3.69383402,90.026,89.989,0.72092609]
[1772699095119,11.10802554,90.025,89.99,11.11234581]
[1772699095322,11.10802554,90.025,89.991,0.72092609]
[1772699098046,3.69383402,90.034,89.984,0.72092609]
[1772699098047,4.26499802,90.02,89.984,0.72092609]
[1772699100346,27.77002682,90.026,89.976,27.78514745]
[1772699100347,27.77002682,90.026,89.986,0.72092609]
[1772699101934,27.77002682,90.026,89.988,0.72092609]
[1772699103749,4.26499802,90.02,89.982,0.72092609]
[1772699103947,3.69383402,90.016,89.982,0.72092609]
[1772699104449,3.69383402,90.016,89.983,0.72092609]
[1772699104635,11.10876592,90.019,89.983,0.72092609]
[1772699105138,11.10703853,90.033,89.983,0.72092609]
[1772699105545,3.69383402,90.04,89.984,0.72092609]
[1772699105955,3.69383402,90.048,89.987,0.72092609]
[1772699106170,11.10481838,90.051,89.987,0.72092609]
[1772699106862,11.10309221,90.065,89.987,0.72092609]
[1772699107040,3.69383402,90.062,89.987,0.72092609]
[1772699107238,11.10309221,90.065,89.987,0.72092609]
[1772699107854,3.69383402,90.062,89.987,0.72092609]
[1772699108063,3.69383402,90.058,89.99,0.72092609]
[1772699110739,3.69383402,90.058,89.988,94.45703871]
[1772699110740,4.26499802,90.05,89.993,0.72092609]
[1772699111236,4.26499802,90.04,89.993,0.72092609]
[1772699111453,4.26499802,90.03,89.993,0.72092609]
[1772699112453,11.10753201,90.029,89.995,0.72092609]
[1772699112962,3.69383402,90.04,89.995,0.72092609]
[1772699113148,11.105805,90.043,89.995,0.72092609]
[1772699114450,11.105805,90.043,89.98,0.28432314]
[1772699114451,4.26499802,90.04,89.997,0.72092609]
[1772699114657,7.95883204,90.04,89.997,0.72092609]
[1772699116641,4.26499802,90.02,89.972,0.72092609]
[1772699118644,4.26499802,90.03,89.974,0.72092609]
[1772699119864,3.69383402,90.032,89.974,0.72092609]
[1772699119865,4.26499802,90.02,89.974,0.72092609]
[1772699120749,3.69383402,90.016,89.974,0.72092609]
[1772699121565,3.69383402,90.016,89.976,0.72092609]
[1772699121771,4.26499802,90.01,89.967,0.72092609]
[1772699122452,4.26499802,90.0,89.961,0.72092609]
[1772699122771,11.10925956,90.015,89.964,0.72092609]
[1772699124462,38.88240847,90.015,89.964,0.72092609]
[1772699124866,38.88240847,90.015,89.966,0.72092609]
[1772699125072,11.10925956,90.015,89.966,0.72092609]
[1772699126557,3.69383402,90.012,89.968,0.72092609]
[1772699126752,4.26499802,90.01,89.968,0.72092609]
[1772699127072,3.69383402,90.012,89.968,0.72092609]
[1772699127768,11.10925956,90.015,89.968,0.28432314]
[1772699127975,4.26499802,90.03,89.969,0.72092609]
[1772699128854,4.26499802,90.02,89.971,0.72092609]
[1772699129772,4.26499802,90.01,89.961,0.72092609]
[1772699129959,4.26499802,90.0,89.961,0.72092609]
[1772699130757,11.11123456,89.999,89.962,0.72092609]
[1772699134375,11.11123456,89.999,89.964,0.72092609]
[1772699135080,27.77376601,90.013,89.964,0.72092609]
[1772699135263,3.69383402,90.01,89.964,0.72092609]
[1772699135775,11.10901274,90.017,89.965,0.72092609]
[1772699135977,38.88154459,90.017,89.965,0.72092609]
[1772699136190,4.26499802,90.01,89.965,0.72092609]
[1772699136386,38.88500038,90.009,89.967,0.72092609]
[1772699136579,4.26499802,90.0,89.967,0.72092609]
[1772699137487,3.69383402,90.006,89.967,0.72092609]
[1772699137488,4.26499802,90.04,89.968,0.72092609]
[1772699137683,4.26499802,90.01,89.968,0.72092609]
[1772699138091,4.26499802,90.02,89.968,0.72092609]
[1772699138387,3.69383402,90.036,89.96,0.2]
[1772699138388,38.87204433,90.039,89.97,0.72092609]
[1772699138704,4.26499802,90.02,89.97,0.72092609]
[1772699139095,4.26499802,90.03,89.97,0.72092609]
[1772699140898,4.26499802,90.02,89.972,0.72092609]
[1772699143085,4.26499802,90.02,89.96,0.48432314]
[1772699143086,3.69383402,90.016,89.974,0.72092609]
[1772699143285,4.26499802,90.01,89.974,0.72092609]
[1772699144202,4.26499802,90.01,89.96,0.2]
[1772699144203,4.26499802,90.0,89.967,0.72092609]
[1772699144979,3.69383402,89.996,89.967,0.72092609]
[1772699145198,3.69383402,89.996,89.96,0.92092609]
[1772699145199,4.26499802,89.99,89.96,0.92092609]
[1772699145496,4.26499802,89.99,89.961,0.72092609]
[1772699146003,3.69383402,89.996,89.961,0.72092609]
[1772699146597,4.26499802,89.99,89.961,0.72092609]
[1772699146800,3.69383402,89.996,89.961,0.72092609]
[1772699148505,4.26499802,89.99,89.961,0.72092609]
[1772699149488,4.26499802,89.99,89.96,0.2]
[1772699149688,3.69383402,89.992,89.961,0.72092609]
[1772699149980,4.26499802,89.99,89.961,0.72092609]
[1772699150393,3.69383402,89.986,89.96,0.2]
[1772699150686,4.26499802,89.98,89.955,0.73086543]
[1772699150882,4.26499802,89.98,89.95,0.2]
[1772699151487,4.26499802,89.97,89.95,0.2]
[1772699151792,4.26499802,89.97,89.95,1e-08]
[1772699152601,4.26499802,90.0,89.95,1e-08]
[1772699152602,4.26499802,89.96,89.95,1e-08]
[1772699152808,3.69383402,89.966,89.95,1e-08]
[1772699153196,3.69383402,89.966,89.95,0.7209261]
[1772699154602,11.11543377,89.965,89.95,0.7209261]
[1772699155496,0.62636832,89.964,89.91,0.1]
[1772699155809,0.62636832,89.959,89.91,0.1]
[1772699156012,0.62636832,89.959,89.915,11.12155819]
[1772699156400,0.62636832,89.949,89.915,11.12155819]
[1772699156598,0.62636832,89.947,89.91,0.1]
[1772699156989,0.62636832,89.947,89.913,11.12176227]
[1772699157390,11.11753457,89.948,89.921,0.67026663]
[1772699158809,4.04273812,89.95,89.921,0.67026663]
[1772699159010,0.62636832,89.949,89.921,0.67026663]
[1772699159210,3.4163698,89.94,89.91,0.1]
[1772699159400,0.62636832,89.939,89.91,0.1]
[1772699160309,0.62636832,89.939,89.911,11.12210964]
[1772699160490,0.62636832,89.939,89.91,0.1]
[1772699160690,11.1187707,89.938,89.91,0.1]
[1772699161114,0.62636832,89.937,89.91,0.1]
[1772699161411,0.62636832,89.937,89.911,0.67026663]
[1772699162795,0.62636832,89.944,89.912,0.67026663]
[1772699163893,3.69383402,89.946,89.91,0.1]
[1772699163894,0.62636832,89.939,89.91,0.1]
[1772699164611,0.62636832,89.929,89.91,0.1]
[1772699165006,11.74637543,89.928,89.91,0.1]
[1772699165706,0.62636832,89.927,89.91,0.1]
[1772699167015,0.62636832,89.914,89.89,1e-08]
[1772699168743,0.62636832,89.899,89.89,1e-08]
[1772699169118,11.12371799,89.898,89.89,1e-08]
[1772699170812,0.62636832,89.897,89.877,1e-08]
[1772699171009,0.62636832,89.889,89.87,1e-08]
[1772699171205,0.62636832,89.887,89.87,1e-08]
[1772699171512,0.62636832,89.879,89.87,1e-08]
[1772699172113,0.62636832,89.879,89.85,11.22966054]
[1772699172114,0.62636832,89.879,89.851,0.67026663]
[1772699174518,11.12619328,89.878,89.851,0.67026663]
[1772699174821,0.62636832,89.869,89.85,0.1]
[1772699175517,0.62636832,89.877,89.85,0.77026663]
[1772699175821,0.62636832,89.869,89.823,11.13300602]
[1772699176700,0.62636832,89.867,89.823,11.13300602]
[1772699177221,38.94600969,89.868,89.823,11.13300602]
[1772699177222,11.12743134,89.868,89.823,11.13300602]
[1772699177724,11.12743134,89.868,89.824,0.67026663]
[1772699178528,0.62636832,89.872,89.826,0.67026663]
[1772699179225,3.4163698,89.86,89.826,0.63526118]
[1772699179521,0.65986353,89.859,89.826,0.63526118]
[1772699180328,0.65986353,89.849,89.809,0.63526118]
[1772699180517,0.65986353,89.847,89.809,0.63526118]
[1772699181236,0.65986353,89.847,89.811,0.63526118]
[1772699182231,0.65986353,89.839,89.801,0.63526118]
[1772699182418,0.65986353,89.837,89.801,0.63526118]
[1772699182624,0.65986353,89.837,89.798,11.13599001]
[1772699183019,0.65986353,89.837,89.799,0.63526118]
[1772699183620,0.65986353,89.867,89.8,0.63526118]
[1772699184725,3.69383402,89.876,89.803,0.63526118]
[1772699184726,0.65986353,89.859,89.803,0.63526118]
[1772699186724,0.65986353,89.865,89.806,0.63526118]
[1772699188525,0.67908365,89.859,89.806,0.63526118]
[1772699189033,0.67908365,89.859,89.775,0.73233082]
[1772699189034,0.67908365,89.857,89.809,0.63556157]
[1772699190920,11.12891737,89.856,89.811,0.63556157]
[1772699191516,11.80800102,89.856,89.811,0.63556157]
[1772699191723,0.67908365,89.855,89.811,0.63556157]
[1772699192617,0.67908365,89.849,89.811,0.63556157]
[1772699193032,0.67908365,89.847,89.811,0.63556157]
[1772699193727,0.67908365,89.839,89.8,0.63556157]
[1772699195220,11.13114717,89.838,89.801,11.13573345]
[1772699195426,0.67908365,89.837,89.802,0.63556157]
[1772699195824,3.4163698,89.83,89.792,11.1368496]
[1772699196030,0.67908365,89.819,89.78,0.63556157]
[1772699196328,0.67908365,89.799,89.763,0.63556157]
[1772699196517,0.67908365,89.799,89.762,11.14054331]
[1772699196713,0.67908365,89.809,89.776,0.63556157]
[1772699196936,0.67908365,89.809,89.777,0.63556157]
[1772699197435,0.67908365,89.807,89.766,11.14001356]
[1772699198222,0.67908365,89.799,89.766,11.14001356]
[1772699198838,0.67908365,89.799,89.731,55.72207292]
[1772699198839,0.67908365,89.789,89.736,0.63556157]
[1772699199041,0.67908365,89.779,89.743,0.63556157]
[1772699199232,0.67908365,89.779,89.688,4.82477569]
[1772699199233,3.69383402,89.797,89.761,0.63556157]
[1772699199546,0.67908365,89.806,89.763,0.63556157]
[1772699200839,11.8143211,89.805,89.765,0.63556157]
[1772699201051,0.67908365,89.804,89.765,0.63556157]
[1772699202249,0.67908365,89.839,89.766,0.63556157]
[1772699203053,0.67908365,89.837,89.769,0.63556157]
[1772699204133,11.13114717,89.838,89.769,0.63556157]
[1772699204338,0.67908365,89.853,89.777,4.82477569]
[1772699204629,0.67908365,89.853,89.779,0.63556157]
[1772699204831,0.67908365,89.85,89.779,0.63556157]
[1772699205135,0.67908365,89.848,89.782,0.63556157]
[1772699206930,0.67908365,89.848,89.783,94.67271086]
[1772699207138,11.13003216,89.847,89.785,0.63556157]
[1772699207450,0.67908365,89.846,89.785,0.63556157]
[1772699209341,0.64466312,89.844,89.788,0.68990018]
[1772699210747,0.64466312,89.839,89.79,0.68990018]
[1772699211757,0.64466312,89.836,89.79,0.68990018]
[1772699212256,0.64466312,89.829,89.789,11.1372217]
[1772699212753,0.64466312,89.827,89.783,11.13796598]
[1772699212962,0.64466312,89.827,89.783,11.82786616]
[1772699213767,0.64466312,89.827,89.784,0.68990018]
[1772699214656,0.64466312,89.827,89.764,55.70128129]
[1772699214657,0.64466312,89.807,89.764,0.68990018]
[1772699215152,0.64466312,89.827,89.764,0.68990018]
[1772699215343,0.64466312,89.827,89.764,0.83206175]
[1772699216356,0.64466312,89.825,89.766,0.83206175]
[1772699217954,0.64466312,89.823,89.769,0.68990018]
[1772699218167,0.64466312,89.819,89.768,0.28432314]
[1772699218650,0.64466312,89.819,89.768,0.97422332]
[1772699219256,0.64466312,89.819,89.769,0.68990018]
[1772699220052,0.64466312,89.816,89.762,0.68990018]
[1772699222256,0.64466312,89.809,89.763,11.14044762]
[1772699222443,0.64466312,89.796,89.76,0.1]
[1772699222842,0.64466312,89.796,89.761,11.14069584]
[1772699223250,0.64466312,89.796,89.762,0.68990018]
[1772699224860,11.78114065,89.795,89.763,11.14044762]
[1772699225065,0.64466312,89.794,89.764,0.68990018]
[1772699225442,0.64466312,89.794,89.76,0.1]
[1772699225771,0.64466312,89.794,89.761,11.14069584]
[1772699226858,0.64466312,89.789,89.76,0.1]
[1772699227046,0.64466312,89.787,89.76,0.1]
[1772699228148,0.64466312,89.784,89.76,0.1]
[1772699230268,0.64466312,89.782,89.76,0.1]
[1772699230471,0.64466312,89.779,89.735,0.68990018]
[1772699231166,38.98288094,89.783,89.71,0.24216157]
[1772699231167,0.64466312,89.769,89.728,0.68990018]
[1772699233567,0.64466312,89.767,89.73,0.68990018]
[1772699234649,0.64466312,89.767,89.725,11.14516084]
[1772699235056,0.64466312,89.767,89.726,0.68990018]
[1772699235667,11.1400753,89.766,89.727,11.14491736]
[1772699235859,0.64466312,89.765,89.727,11.14491736]
[1772699236474,0.64466312,89.759,89.717,0.68990018]
[1772699236650,0.64466312,89.749,89.723,0.68990018]
[1772699236850,0.64466312,89.756,89.723,0.68990018]
[1772699237852,0.64466312,89.754,89.724,11.14529]
[1772699238060,0.64466312,89.754,89.717,11.14615959]
[1772699238260,0.64466312,89.754,89.718,0.68990018]
[1772699239274,0.70488333,89.749,89.712,11.14667842]
[1772699239584,0.70488333,89.739,89.71,0.1]
[1772699239753,0.70488333,89.739,89.71,11.24690987]
[1772699239948,3.69383402,89.759,89.713,0.70239763]
[1772699240255,0.70488333,89.758,89.713,0.70239763]
[1772699240970,0.70488333,89.749,89.713,0.70239763]
[1772699242858,0.70488333,89.747,89.714,11.84892994]
[1772699245184,0.70488333,89.747,89.715,0.70239763]
[1772699245472,0.70488333,89.745,89.715,0.70239763]
[1772699245682,0.70488333,89.745,89.71,0.1]
[1772699245683,3.43108368,89.73,89.71,0.1]
[1772699245862,0.70488333,89.729,89.71,0.1]
[1772699247286,0.67592432,89.727,89.71,0.1]
[1772699248188,0.67592432,89.727,89.693,0.68352377]
[1772699248367,3.43108368,89.71,89.682,0.68352377]
[1772699248682,0.67592432,89.709,89.679,11.15078075]
[1772699249271,0.67592432,89.709,89.68,0.78352377]
[1772699249472,11.82320215,89.708,89.68,0.78352377]
[1772699249658,0.67592432,89.707,89.68,0.78352377]
[1772699250058,0.67592432,89.707,89.68,0.1]
[1772699250963,0.67592432,89.689,89.68,1e-08]
[1772699251162,0.67592432,89.695,89.68,1e-08]
[1772699251382,0.67592432,89.703,89.68,1e-08]
[1772699251576,0.67592432,89.717,89.682,0.68352377]
[1772699251875,0.67592432,89.719,89.682,0.68352377]
[1772699252065,3.43108368,89.72,89.681,11.15063391]
[1772699252066,0.67592432,89.709,89.681,0.68352377]
[1772699252262,3.43108368,89.74,89.681,0.68352377]
[1772699252467,0.67592432,89.739,89.682,0.68352377]
[1772699252679,0.67592432,89.739,89.683,0.68352377]
[1772699252885,3.69383402,89.756,89.684,0.68352377]
[1772699252886,0.67592432,89.729,89.684,0.68352377]
[1772699253588,0.67592432,89.729,89.686,0.68352377]
[1772699254086,11.14479315,89.728,89.686,0.68352377]
[1772699254388,0.67592432,89.729,89.686,0.68352377]
[1772699254886,0.67592432,89.736,89.687,0.68352377]
[1772699255273,3.69383402,89.737,89.687,0.68352377]
[1772699255274,0.67592432,89.729,89.687,0.68352377]
[1772699255786,0.67592432,89.727,89.689,0.68352377]
[1772699256273,0.67592432,89.739,89.689,0.68352377]
[1772699257865,0.67592432,89.737,89.691,0.68352377]
[1772699258675,0.67592432,89.748,89.691,0.68352377]
[1772699259393,0.67592432,89.748,89.692,0.68352377]
[1772699259773,0.67592432,89.746,89.694,0.28432314]
[1772699259980,0.67592432,89.746,89.695,0.68352377]
[1772699261193,0.67592432,89.739,89.695,0.68352377]
[1772699261787,0.67592432,89.737,89.697,0.68352377]
[1772699261979,0.67592432,89.729,89.689,0.68352377]
[1772699262173,0.67592432,89.719,89.682,11.15050957]
[1772699262393,0.67592432,89.719,89.682,11.83403334]
[1772699263295,0.67592432,89.717,89.683,0.68352377]
[1772699265103,0.67592432,89.717,89.68,1e-08]
[1772699265304,0.67592432,89.709,89.68,1e-08]
[1772699266330,39.01199339,89.716,89.68,1e-08]
[1772699266599,0.67592432,89.709,89.68,1e-08]
[1772699267880,11.82246387,89.714,89.68,1e-08]
[1772699268078,11.14653955,89.714,89.68,1e-08]
[1772699268398,0.67592432,89.713,89.68,1e-08]
[1772699268981,0.68748883,89.709,89.68,1e-08]
[1772699269581,0.68748883,89.707,89.68,1e-08]
[1772699271308,11.14727783,89.708,89.68,1e-08]
[1772699271309,0.68748883,89.729,89.68,1e-08]
[1772699272111,0.68748883,89.725,89.68,1e-08]
[1772699273418,0.68748883,89.723,89.68,1e-08]
[1772699274391,0.68748883,89.731,89.68,1e-08]
[1772699275309,0.68748883,89.729,89.68,1e-08]
[1772699277512,0.68748883,89.727,89.68,1e-08]
[1772699278715,0.68748883,89.725,89.68,1e-08]
[1772699281809,0.68748883,89.725,89.681,0.65915783]
[1772699282114,11.14421069,89.733,89.681,0.65915783]
[1772699282294,0.68748883,89.741,89.682,0.65915783]
[1772699283399,0.68748883,89.741,89.685,0.65915783]
[1772699283608,3.69383402,89.772,89.685,0.65915783]
[1772699283609,0.68748883,89.739,89.685,0.65915783]
[1772699285127,0.68748883,89.737,89.687,0.65915783]
[1772699286103,0.68748883,89.737,89.688,0.65915783]
[1772699287221,0.68748883,89.737,89.691,0.65915783]
[1772699287801,0.68748883,89.752,89.691,0.65915783]
[1772699289916,0.68748883,89.752,89.694,0.65915783]
[1772699290100,11.13846222,89.779,89.694,0.65915783]
[1772699290301,38.98461777,89.779,89.694,0.65915783]
[1772699290503,3.43479106,89.77,89.694,0.65915783]
[1772699291016,11.13846222,89.779,89.694,0.65915783]
[1772699291207,38.98461777,89.779,89.694,0.65915783]
[1772699291408,3.43479106,89.77,89.694,0.65915783]
[1772699292009,0.68748883,89.767,89.696,0.28432314]
[1772699292208,0.68748883,89.767,89.697,0.65915783]
[1772699294022,3.43479106,89.78,89.696,0.28432314]
[1772699294023,0.68748883,89.765,89.7,0.65915783]
[1772699294330,0.68748883,89.776,89.7,0.65915783]
[1772699294516,0.68748883,89.776,89.703,0.65915783]
[1772699294732,11.1347415,89.809,89.709,0.65915783]
[1772699295024,11.1347415,89.809,89.713,0.65915783]
[1772699295521,11.1347415,89.809,89.713,0.64432314]
[1772699295824,11.1347415,89.809,89.72,0.8013194]
[1772699296009,0.2,89.81,89.732,3.69383402]
[1772699296212,0.2,89.81,89.734,0.65915783]
[1772699296414,0.2,89.81,89.737,0.65915783]
[1772699296630,0.2,89.81,89.738,0.65915783]
[1772699296832,0.2,89.81,89.739,0.65915783]
[1772699297009,0.30023278,89.835,89.745,0.65915783]
[1772699297514,0.3015514,89.829,89.745,0.65915783]
[1772699297722,0.3015514,89.829,89.746,0.28432314]
[1772699297908,0.3015514,89.829,89.747,0.65915783]
[1772699298618,0.3015514,89.829,89.749,0.65915783]
[1772699298826,0.3015514,89.829,89.752,0.99888094]
[1772699299026,0.3015514,89.829,89.753,0.7145578]
[1772699299409,0.3050979,89.827,89.753,0.7145578]
[1772699300027,0.3050979,89.827,89.76,0.7145578]
[1772699300211,0.30635487,89.85,89.814,0.7145578]
[1772699300604,0.30761016,89.848,89.764,0.28432314]
[1772699300821,0.30761016,89.839,89.767,0.7145578]
[1772699301316,0.30761016,89.839,89.771,0.7145578]
[1772699302608,0.30761016,89.839,89.776,0.7145578]
[1772699302810,0.3100709,89.848,89.777,0.7145578]
[1772699303324,3.43479106,89.87,89.78,0.7145578]
[1772699303325,0.3100709,89.858,89.78,0.7145578]
[1772699303533,0.3100709,89.866,89.783,4.40839182]
[1772699303727,0.3100709,89.866,89.789,0.7145578]
[1772699304606,0.31128227,89.859,89.789,0.7145578]
[1772699304827,0.31247104,89.857,89.792,0.7145578]
[1772699306411,0.31247104,89.857,89.792,0.85671937]
[1772699306936,0.3148216,89.855,89.795,0.7145578]
[1772699307612,3.43479106,89.85,89.795,0.7145578]
[1772699307818,0.3171161,89.849,89.795,0.7145578]
[1772699310118,0.31934768,89.848,89.797,0.28432314]
[1772699310434,0.31934768,89.848,89.798,0.68050396]
[1772699312314,3.69383402,89.846,89.765,0.68050396]
[1772699312518,0.3215248,89.829,89.772,0.68050396]
[1772699313119,0.3215248,89.829,89.773,0.68050396]
[1772699315339,0.3215248,89.829,89.775,0.82266553]
[1772699315523,0.32384193,89.848,89.776,0.68050396]
[1772699318870,0.32796344,89.846,89.779,0.68050396]
[1772699322349,0.32796344,89.846,89.782,0.68050396]
[1772699323350,0.32796344,89.846,89.785,0.68050396]
[1772699326537,0.32796344,89.846,89.788,0.68050396]
[1772699328034,0.33661527,89.844,89.788,0.68050396]
[1772699328647,0.33751252,89.842,89.79,0.68050396]
[1772699330559,0.3401559,89.84,89.793,0.71894988]
[1772699330758,0.3401559,89.837,89.791,38.97940772]
[1772699330947,0.3401559,89.837,89.791,39.6983576]
[1772699331464,0.3401559,89.837,89.791,11.13697363]
[1772699332035,0.34101303,89.829,89.791,11.13697363]
[1772699333131,0.34186249,89.827,89.781,27.84530938]
[1772699333650,0.34186249,89.827,89.781,28.56425926]
[1772699334258,0.34186249,89.827,89.782,0.71894988]
[1772699337140,0.34608223,89.83,89.784,0.71894988]
[1772699337341,0.34608223,89.83,89.785,0.71894988]
[1772699339653,0.34608223,89.83,89.788,0.71894988]
[1772699340363,11.13000506,89.848,89.789,0.75072637]
[1772699341039,3.42592939,89.88,89.791,0.75072637]
[1772699341540,27.81207934,89.889,89.795,3.69383402]
[1772699341752,3.62592939,89.89,89.799,0.75072637]
[1772699342062,3.62592939,89.89,89.801,1.03504951]
[1772699342250,38.93734425,89.888,89.803,0.75072637]
[1772699342557,38.93734425,89.888,89.805,1.03504951]
[1772699342737,3.42592939,89.88,89.807,0.75072637]
[1772699342942,3.42592939,89.88,89.808,1.03504951]
[1772699343252,3.42592939,89.88,89.81,1.03504951]
[1772699343562,3.42592939,89.88,89.814,0.89288794]
[1772699343563,11.12606949,89.879,89.814,0.89288794]
[1772699343854,11.12606949,89.879,89.815,0.89288794]
[1772699344237,0.2,89.89,89.815,0.89288794]
[1772699345356,11.12507926,89.887,89.815,0.89288794]
[1772699345552,11.12507926,89.887,89.817,0.28432314]
[1772699345756,11.12507926,89.887,89.818,0.89288794]
[1772699345961,3.42592939,89.88,89.818,0.89288794]
[1772699346160,11.12507926,89.887,89.82,0.75072637]
[1772699346369,11.12507926,89.887,89.822,0.75072637]
[1772699346670,11.12507926,89.887,89.824,0.89288794]
[1772699346842,11.12507926,89.887,89.826,0.75072637]
[1772699347043,11.12507926,89.887,89.828,0.75072637]
[1772699347242,11.12507926,89.887,89.83,0.75072637]
[1772699352139,11.12507926,89.887,89.832,0.75072637]
[1772699353152,11.12507926,89.887,89.836,0.75072637]
[1772699354343,11.12507926,89.887,89.839,0.75072637]
[1772699356642,11.12507926,89.887,89.841,0.75072637]
[1772699357559,0.02072106,89.886,89.841,0.75072637]
[1772699358567,0.02072106,89.886,89.843,0.75072637]
[1772699360966,0.02072106,89.886,89.844,11.13040381]
[1772699361268,0.02484346,89.879,89.844,11.13040381]
[1772699364678,0.02786208,89.878,89.837,11.13127107]
[1772699364875,0.02786208,89.878,89.838,0.75072637]
[1772699365968,11.12606949,89.879,89.837,11.13127107]
[1772699365969,0.02769175,89.859,89.837,11.13127107]
[1772699366554,0.02769175,89.859,89.836,0.75072637]
[1772699366754,0.02842576,89.874,89.836,0.75072637]
[1772699368952,0.02842576,89.874,89.838,0.75634959]
[1772699370874,0.03118567,89.889,89.84,0.75634959]
[1772699371761,11.12483173,89.889,89.84,0.75634959]
[1772699371961,0.03187697,89.888,89.842,0.75634959]
[1772699372175,11.12483173,89.889,89.842,0.75634959]
[1772699372563,0.03187697,89.894,89.844,0.75634959]
[1772699372773,0.03187697,89.894,89.845,1.04067273]
[1772699372958,0.03187697,89.894,89.847,0.75634959]
[1772699373281,0.03187697,89.894,89.849,0.28432314]
[1772699373453,0.03187697,89.894,89.85,0.75634959]
[1772699373956,0.03187697,89.894,89.849,0.14216157]
[1772699373957,0.03187697,89.894,89.852,0.75634959]
[1772699375486,0.03187697,89.894,89.854,0.75634959]
[1772699375783,0.03187697,89.894,89.853,38.95251131]
[1772699375784,0.2,89.93,89.857,0.89851116]
[1772699375958,0.23458521,89.93,89.858,0.89851116]
[1772699376167,0.03458521,89.929,89.86,0.89851116]
[1772699376365,0.03458521,89.929,89.862,0.89851116]
[1772699376666,11.15446867,89.929,89.864,0.89851116]
[1772699376860,11.15446867,89.929,89.866,0.89851116]
[1772699376861,0.0352353,89.928,89.866,0.89851116]
[1772699377059,0.0352353,89.928,89.867,1.04067273]
[1772699377263,0.0352353,89.928,89.869,0.89851116]
[1772699377456,0.0352353,89.928,89.871,0.89851116]
[1772699377657,0.0352353,89.928,89.872,0.89851116]
[1772699380786,0.0352353,89.928,89.875,0.89851116]
[1772699380984,11.11988346,89.929,89.875,0.75634959]
[1772699380985,0.03688721,89.919,89.875,0.75634959]
[1772699381811,0.03745387,89.928,89.875,0.75634959]
[1772699382985,0.03745387,89.928,89.878,0.75634959]
[1772699385481,0.03745387,89.928,89.88,0.75634959]
[1772699387582,0.03987039,89.926,89.881,11.12582192]
[1772699387883,0.03987039,89.919,89.881,11.12582192]
[1772699388074,0.03987039,89.899,89.86,0.75634959]
[1772699388686,0.04040577,89.889,89.814,0.75634959]
[1772699388879,0.04040577,89.889,89.815,0.75714719]
[1772699389287,0.04040577,89.889,89.818,0.75714719]
[1772699389765,0.04040577,89.889,89.821,0.75714719]
[1772699390787,0.04040577,89.889,89.824,0.75714719]
[1772699391990,0.04040577,89.889,89.826,1.04147033]
[1772699392188,0.04040577,89.889,89.827,0.75714719]
[1772699394187,0.04040577,89.889,89.83,0.75714719]
[1772699395704,11.12393729,89.897,89.83,0.75714719]
[1772699395990,11.168468,89.897,89.83,0.75714719]
[1772699396194,0.04453071,89.896,89.833,0.75714719]
[1772699396788,3.42592939,89.91,89.84,0.75714719]
[1772699396971,0.04501855,89.899,89.84,0.75714719]
[1772699398080,0.04549493,89.898,89.843,0.75714719]
[1772699398590,0.04596306,89.889,89.843,0.75714719]
[1772699400512,0.04596306,89.889,89.845,0.75714719]
[1772699400793,0.04596306,89.889,89.845,0.28432314]
[1772699400995,0.04687446,89.905,89.847,0.75714719]
[1772699401194,0.04687446,89.899,89.849,0.75714719]
[1772699401698,0.04732255,89.889,89.849,0.75714719]
[1772699404293,0.04732255,89.889,89.851,0.75714719]
[1772699404797,0.04863036,89.904,89.851,0.75714719]
[1772699407277,0.04946915,89.889,89.842,0.75714719]
[1772699407494,0.04946915,89.879,89.847,11.12995642]
[1772699409683,0.05070596,89.878,89.839,0.75714719]
[1772699412404,0.05149954,89.886,89.841,0.75714719]
[1772699413896,0.05149954,89.886,89.843,0.75714719]
[1772699414497,3.42265658,89.88,89.843,0.75714719]
[1772699414691,0.0526616,89.879,89.843,0.75714719]
[1772699415085,0.0526616,89.889,89.843,0.75714719]
[1772699416211,3.42265658,89.88,89.804,55.67635668]
[1772699416504,0.05304205,89.869,89.805,0.75714719]
[1772699416706,0.05341888,89.879,89.805,0.75714719]
[1772699417813,0.05341888,89.879,89.807,0.28432314]